fUSD/lending_fUSD_20241216
["ID","MTS","AMOUNT","RATE_DAILY","PERIOD"]
[345566648,1734354727996,-333.121617,0.00023898,8]
[345566649,1734354728006,-333.121617,0.00023898,4]
[345566650,1734354728015,-333.121617,0.00023898,2]
[345566651,1734354728026,-2000.0,0.00023904,2]
[345566652,1734354728035,-150.0,0.00023907,120]
[345566653,1734354728045,-335304.0,0.00023922,2]
[345566654,1734354728252,-150.0,0.00023935,120]
[345566655,1734354728280,-333.121617,0.00023998,2]
[345566656,1734354728291,-333.121617,0.00023998,4]
[345566657,1734354728300,-333.121617,0.00023998,8]
[345566658,1734354728310,-333.121617,0.00023998,10]
[345566659,1734354728319,-333.121617,0.00023998,12]
[345566660,1734354728329,-37837.13208778,0.00023999,4]
[345566661,1734354728338,-11000.0,0.00024,2]
[345566662,1734354728347,-500.0,0.00024,30]
[345566663,1734354728356,-500.0,0.00024,30]
[345566664,1734354728366,-500.0,0.00024,30]
[345566665,1734354728375,-501.71676978,0.00024,30]
[345566666,1734354728385,-500.0,0.00024,30]
[345566667,1734354728394,-500.0,0.00024,30]
[345566668,1734354728403,-500.0,0.00024,30]
[345566669,1734354728413,-500.0,0.00024,30]
[345566670,1734354728422,-501.28361,0.00024,30]
[345566671,1734354728431,-501.32640155,0.00024,30]
[345566672,1734354728440,-531.86089797,0.00024,30]
[345566673,1734354728451,-502.78377618,0.00024,30]
[345566674,1734354728460,-500.0,0.00024,30]
[345566675,1734354728470,-500.0,0.00024,30]
[345566676,1734354728480,-500.0,0.00024,30]
[345566677,1734354728489,-553.16872412,0.00024,30]
[345566678,1734354728498,-500.9168641,0.00024,30]
[345566679,1734354728507,-503.19316606,0.00024,30]
[345566680,1734354728516,-503.18448327,0.00024,30]
[345566681,1734354728527,-500.0,0.00024,30]
[345566682,1734354728536,-500.0,0.00024,30]
[345566683,1734354728545,-500.0,0.00024,30]
[345566684,1734354728555,-500.0,0.00024,30]
[345566685,1734354728564,-500.0,0.00024,30]
[345566686,1734354728574,-500.0,0.00024,30]
[345566687,1734354728583,-500.0,0.00024,30]
[345566688,1734354728592,-500.0,0.00024,30]
[345566689,1734354728601,-500.0,0.00024,30]
[345566690,1734354728610,-500.0,0.00024,30]
[345566691,1734354728620,-500.0,0.00024,30]
[345566692,1734354728629,-500.0,0.00024,30]
[345566693,1734354728639,-974.54045654,0.00024,2]
[345566694,1734354728648,-500.0,0.00024,30]
[345566695,1734354728658,-500.0,0.00024,30]
[345566696,1734354728669,-500.0,0.00024,30]
[345566697,1734354728678,-500.0,0.00024,30]
[345566698,1734354728688,-500.0,0.00024,30]
[345566699,1734354728697,-505.55389025,0.00024,30]
[345566700,1734354728706,-500.0,0.00024,30]
[345566701,1734354728716,-500.0,0.00024,30]
[345566702,1734354728725,-500.0,0.00024,30]
[345566703,1734354728734,-500.0,0.00024,30]
[345566704,1734354728744,-500.0,0.00024,30]
[345566705,1734354728753,-820.44621252,0.00024,30]
[345566706,1734354728763,-507.89928634,0.00024,30]
[345566707,1734354728775,-606.36158949,0.00024,30]
[345566708,1734354728784,-723.52259581,0.00024,30]
[345566709,1734354728794,-500.0,0.00024,30]
[345566710,1734354728803,-500.0,0.00024,30]
[345566711,1734354728813,-500.0,0.00024,30]
[345566712,1734354728822,-500.3569808,0.00024,30]
[345566713,1734354728832,-500.0,0.00024,30]
[345566714,1734354728841,-500.0,0.00024,30]
[345566715,1734354728852,-500.0,0.00024,30]
[345566716,1734354728864,-500.0,0.00024,30]
[345566717,1734354728873,-500.0,0.00024,30]
[345566718,1734354728883,-500.0,0.00024,30]
[345566719,1734354728893,-500.0,0.00024,30]
[345566720,1734354728903,-500.0,0.00024,30]
[345566721,1734354728913,-500.0,0.00024,30]
[345566722,1734354728923,-500.0,0.00024,30]
[345566723,1734354728933,-500.0,0.00024,30]
[345566724,1734354728942,-500.0,0.00024,30]
[345566725,1734354728952,-500.0,0.00024,30]
[345566726,1734354728962,-500.0,0.00024,30]
[345566727,1734354728971,-500.0,0.00024,30]
[345566728,1734354728981,-500.0,0.00024,30]
[345566729,1734354728991,-500.0,0.00024,30]
[345566730,1734354729000,-500.0,0.00024,30]
[345566731,1734354729010,-500.0,0.00024,30]
[345566732,1734354729021,-500.0,0.00024,30]
[345566733,1734354729034,-500.0,0.00024,30]
[345566734,1734354729043,-500.0,0.00024,30]
[345566735,1734354729052,-500.0,0.00024,30]
[345566736,1734354729062,-500.0,0.00024,30]
[345566737,1734354729071,-500.0,0.00024,30]
[345566738,1734354729080,-500.0,0.00024,30]
[345566739,1734354729090,-500.0,0.00024,30]
[345566740,1734354729099,-500.0,0.00024,30]
[345566741,1734354729108,-500.0,0.00024,30]
[345566742,1734354729118,-500.0,0.00024,30]
[345566743,1734354729127,-500.0,0.00024,30]
[345566744,1734354729136,-500.0,0.00024,30]
[345566745,1734354729145,-500.0,0.00024,30]
[345566746,1734354729154,-500.0,0.00024,30]
[345566747,1734354729163,-500.0,0.00024,30]
[345566748,1734354729173,-500.0,0.00024,30]
[345566749,1734354729183,-500.0,0.00024,30]
[345566750,1734354729193,-500.0,0.00024,30]
[345566751,1734354729202,-500.0,0.00024,30]
[345566752,1734354729211,-500.0,0.00024,30]
[345566753,1734354729221,-500.0,0.00024,30]
[345566754,1734354729230,-500.0,0.00024,30]
[345566755,1734354729240,-500.0,0.00024,30]
[345566756,1734354729252,-500.0,0.00024,30]
[345566757,1734354729261,-500.0,0.00024,30]
[345566758,1734354729270,-500.0,0.00024,30]
[345566759,1734354729279,-500.0,0.00024,30]
[345566760,1734354729289,-500.0,0.00024,30]
[345566761,1734354729298,-500.0,0.00024,30]
[345566762,1734354729307,-500.0,0.00024,30]
[345566763,1734354729316,-500.0,0.00024,30]
[345566764,1734354729326,-500.0,0.00024,30]
[345566765,1734354729335,-500.40003435,0.00024,30]
[345566766,1734354729345,-500.0,0.00024,30]
[345566767,1734354729355,-500.0,0.00024,30]
[345566768,1734354729363,-500.0,0.00024,30]
[345566769,1734354729373,-500.0,0.00024,30]
[345566770,1734354729382,-500.0,0.00024,30]
[345566771,1734354729391,-500.0,0.00024,30]
[345566772,1734354729401,-500.0,0.00024,30]
[345566773,1734354729410,-500.0,0.00024,30]
[345566774,1734354729420,-500.0,0.00024,30]
[345566775,1734354729429,-500.0,0.00024,30]
[345566776,1734354729438,-500.0,0.00024,30]
[345566777,1734354729447,-500.0,0.00024,30]
[345566778,1734354729456,-500.0,0.00024,30]
[345566779,1734354729466,-500.0,0.00024,30]
[345566780,1734354729475,-209.1468836,0.00024,30]
[345566781,1734354729484,-501.0,0.00024,30]
[345566782,1734354729495,-500.0,0.00024,30]
[345566783,1734354729504,-500.0,0.00024,30]
[345566784,1734354729513,-527.15831171,0.00024,30]
[345566785,1734354729525,-292.62548148,0.00024,30]
[345566786,1734354729533,-585.39442694,0.00024,30]
[345566787,1734354729542,-364.2320931,0.00024,30]
[345566788,1734354729552,-500.0,0.00024,30]
[345566789,1734354729561,-500.0,0.00024,30]
[345566790,1734354729571,-500.0,0.00024,30]
[345566791,1734354729580,-521.57204625,0.00024,30]
[345566792,1734354729590,-500.0,0.00024,30]
[345566793,1734354729599,-500.0,0.00024,30]
[345566794,1734354729608,-500.0,0.00024,30]
[345566795,1734354729617,-500.0,0.00024,30]
[345566796,1734354729626,-500.0,0.00024,30]
[345566797,1734354729635,-500.0,0.00024,30]
[345566798,1734354729645,-898.54238225,0.00024,30]
[345566799,1734354729655,-499.4703215,0.00024,30]
[345566800,1734354729665,-209.38513051,0.00024,30]
[345566801,1734354729675,-12487.9,0.00024,7]
[345566802,1734354729685,-500.0,0.00024,30]
[345566803,1734354729694,-500.0,0.00024,30]
[345566804,1734354729703,-500.0,0.00024,30]
[345566805,1734354729712,-500.0,0.00024,30]
[345566806,1734354729722,-500.0,0.00024,30]
[345566807,1734354729731,-500.0,0.00024,30]
[345566808,1734354729740,-500.0,0.00024,30]
[345566809,1734354729750,-500.0,0.00024,30]
[345566810,1734354729759,-500.0,0.00024,30]
[345566811,1734354729770,-500.0,0.00024,30]
[345566812,1734354729779,-500.0,0.00024,30]
[345566813,1734354729789,-500.0,0.00024,30]
[345566814,1734354729798,-500.0,0.00024,30]
[345566815,1734354729808,-500.0,0.00024,30]
[345566816,1734354729817,-500.0,0.00024,30]
[345566817,1734354729826,-500.0,0.00024,30]
[345566818,1734354729835,-500.0,0.00024,30]
[345566819,1734354729844,-500.0,0.00024,30]
[345566820,1734354729853,-500.0,0.00024,30]
[345566821,1734354729862,-500.0,0.00024,30]
[345566822,1734354729871,-500.0,0.00024,30]
[345566823,1734354729880,-500.0,0.00024,30]
[345566824,1734354729889,-500.0,0.00024,30]
[345566825,1734354729898,-500.0,0.00024,30]
[345566826,1734354729907,-500.0,0.00024,30]
[345566827,1734354729916,-500.0,0.00024,30]
[345566828,1734354729925,-500.0,0.00024,30]
[345566829,1734354729934,-500.0,0.00024,30]
[345566830,1734354729943,-500.0,0.00024,30]
[345566831,1734354729952,-500.0,0.00024,30]
[345566832,1734354729961,-500.0,0.00024,30]
[345566833,1734354729970,-500.0,0.00024,30]
[345566834,1734354729979,-507.45457131,0.00024,30]
[345566835,1734354729988,-500.0,0.00024,30]
[345566836,1734354729997,-500.0,0.00024,30]
[345566837,1734354730006,-500.0,0.00024,30]
[345566838,1734354730015,-500.0,0.00024,30]
[345566839,1734354730027,-500.0,0.00024,30]
[345566840,1734354730036,-500.0,0.00024,30]
[345566841,1734354730046,-500.0,0.00024,30]
[345566842,1734354730059,-500.0,0.00024,30]
[345566843,1734354730076,-500.0,0.00024,30]
[345566844,1734354730091,-500.0,0.00024,30]
[345566845,1734354730106,-500.0,0.00024,30]
[345566846,1734354730121,-500.0,0.00024,30]
[345566847,1734354730136,-500.0,0.00024,30]
[345566848,1734354730151,-500.0,0.00024,30]
[345566849,1734354730164,-500.0,0.00024,30]
[345566850,1734354730178,-500.0,0.00024,30]
[345566851,1734354730193,-500.0,0.00024,30]
[345566852,1734354730209,-500.0,0.00024,30]
[345566853,1734354730225,-500.0,0.00024,30]
[345566854,1734354730240,-500.0,0.00024,30]
[345566855,1734354730258,-132419.92491825,0.00024,5]
[345566856,1734354730274,-7121.75471838,0.00024,2]
[345566857,1734354730289,-500.0,0.00024,30]
[345566858,1734354730303,-500.0,0.00024,30]
[345566859,1734354730319,-500.0,0.00024,30]
[345566860,1734354730333,-641.24359272,0.00024,30]
[345566861,1734354730347,-500.0,0.00024,30]
[345566862,1734354730362,-500.0,0.00024,30]
[345566863,1734354730377,-500.0,0.00024,30]
[345566864,1734354730390,-500.0,0.00024,30]
[345566865,1734354730402,-500.0,0.00024,30]
[345566866,1734354730417,-500.0,0.00024,30]
[345566867,1734354730431,-500.0,0.00024,30]
[345566868,1734354730444,-500.0,0.00024,30]
[345566869,1734354730459,-500.0,0.00024,30]
[345566870,1734354730472,-500.0,0.00024,30]
[345566871,1734354730486,-500.0,0.00024,30]
[345566872,1734354730499,-500.0,0.00024,30]
[345566873,1734354730512,-500.0,0.00024,30]
[345566874,1734354730526,-500.0,0.00024,30]
[345566875,1734354730538,-500.0,0.00024,30]
[345566876,1734354730551,-500.0,0.00024,30]
[345566877,1734354730564,-500.0,0.00024,30]
[345566878,1734354730577,-500.0,0.00024,30]
[345566879,1734354730592,-500.0,0.00024,30]
[345566880,1734354730604,-500.0,0.00024,30]
[345566881,1734354730618,-500.0,0.00024,30]
[345566882,1734354730630,-500.0,0.00024,30]
[345566883,1734354730643,-500.0,0.00024,30]
[345566884,1734354730656,-500.0,0.00024,30]
[345566885,1734354730669,-500.0,0.00024,30]
[345566886,1734354730682,-500.0,0.00024,30]
[345566887,1734354730695,-500.0,0.00024,30]
[345566888,1734354730708,-556.65196506,0.00024,30]
[345566889,1734354730721,-500.0,0.00024,30]
[345566890,1734354730734,-500.0,0.00024,30]
[345566891,1734354730746,-500.0,0.00024,30]
[345566892,1734354730760,-500.0,0.00024,30]
[345566893,1734354730774,-500.0,0.00024,30]
[345566894,1734354730787,-500.0,0.00024,30]
[345566895,1734354730799,-500.0,0.00024,30]
[345566896,1734354730812,-745.83529714,0.00024,30]
[345566897,1734354730825,-500.0,0.00024,30]
[345566898,1734354730838,-500.0,0.00024,30]
[345566899,1734354730851,-500.0,0.00024,30]
[345566900,1734354730864,-500.0,0.00024,30]
[345566901,1734354730876,-500.0,0.00024,30]
[345566902,1734354730889,-500.0,0.00024,30]
[345566903,1734354730901,-500.0,0.00024,30]
[345566904,1734354730914,-500.0,0.00024,30]
[345566905,1734354730927,-500.0,0.00024,30]
[345566906,1734354730940,-500.0,0.00024,30]
[345566907,1734354730953,-500.0,0.00024,30]
[345566908,1734354730966,-500.0,0.00024,30]
[345566909,1734354730980,-500.0,0.00024,30]
[345566910,1734354730992,-500.0,0.00024,30]
[345566911,1734354731005,-500.0,0.00024,30]
[345566912,1734354731022,-500.0,0.00024,30]
[345566913,1734354731034,-500.0,0.00024,30]
[345566914,1734354731047,-500.0,0.00024,30]
[345566915,1734354731059,-500.0,0.00024,30]
[345566916,1734354731071,-20373.0,0.00024,2]
[345566917,1734354731085,-5032.64076,0.00024,30]
[345566918,1734354731098,-330.0,0.00024,12]
[345566919,1734354731111,-2500.0,0.00024013,2]
[345566920,1734354731123,-777.61876221,0.0002402,2]
[345566921,1734354731136,-462.95,0.00024054,2]
[345566922,1734354731149,-4276.31,0.00024057,2]
[345566923,1734354731163,-5000.0,0.00024059,2]
[345566924,1734354731176,-5000.0,0.0002406,2]
[345566925,1734354731189,-2000.0,0.00024065,120]
[345566926,1734354731201,-150.0,0.00024074,120]
[345566927,1734354731214,-150.0,0.00024075,120]
[345566928,1734354731228,-1000.0,0.0002409,2]
[345566929,1734354731243,-333.121617,0.00024098,12]
[345566930,1734354731257,-333.121617,0.00024098,10]
[345566931,1734354731273,-333.121617,0.00024098,8]
[345566932,1734354731286,-333.121617,0.00024098,4]
[345566933,1734354731298,-333.121617,0.00024098,2]
[345566934,1734354731310,-150.0,0.00024098,120]
[345566935,1734354731321,-200.0,0.000241,2]
[345566936,1734354731333,-5000.0,0.00024108,2]
[345566937,1734354731345,-890.0,0.00024109,6]
[345566938,1734354731357,-202.0,0.0002412,2]
[345566939,1734354731369,-211.0,0.0002412,2]
[345566940,1734354731381,-204.0,0.0002412,2]
[345566941,1734354731392,-247.0,0.0002412,2]
[345566942,1734354731405,-152.0,0.00024126,3]
[345566943,1734354731417,-1292.76,0.00024129,2]
[345566944,1734354731428,-5000.0,0.00024138,2]
[345566945,1734354731440,-5000.0,0.00024144,2]
[345566946,1734354731452,-988.58,0.00024148,7]
[345566947,1734354731463,-988.58,0.00024148,7]
[345566948,1734354731475,-5000.0,0.00024158,2]
[345566949,1734354731486,-2194.64,0.00024166,2]
[345566950,1734354731497,-333.121617,0.00024198,2]
[345566951,1734354731509,-333.121617,0.00024198,4]
[345566952,1734354731524,-333.121617,0.00024198,8]
[345566953,1734354731536,-333.121617,0.00024198,10]
[345566954,1734354731547,-333.121617,0.00024198,12]
[345566955,1734354731559,-500.0,0.000242,2]
[345566956,1734354731572,-500.0,0.000242,2]
[345566957,1734354731584,-500.0,0.000242,2]
[345566958,1734354731596,-402.71374719,0.0002421,2]
[345566959,1734354731608,-3528.74510406,0.0002421,2]
[345566960,1734354731620,-5000.0,0.00024227,2]
[345566961,1734354731632,-25000.0,0.00024243,2]
[345566962,1734354731643,-713.77,0.00024256,2]
[345566963,1734354731656,-5000.0,0.00024279,2]
[345566964,1734354731668,-25000.0,0.00024298,2]
[345566965,1734354731679,-333.121617,0.00024298,12]
[345566966,1734354731691,-333.121617,0.00024298,10]
[345566967,1734354731703,-333.121617,0.00024298,8]
[345566968,1734354731715,-333.121617,0.00024298,4]
[345566969,1734354731726,-333.121617,0.00024298,2]
[345566970,1734354731739,-4510.08,0.00024309,2]
[345566971,1734354731751,-150.0,0.00024374,120]
[345566972,1734354731762,-1000.0,0.00024383,2]
[345566973,1734354731776,-1000.0,0.00024383,2]
[345566974,1734354731788,-1000.0,0.00024383,2]
[345566975,1734354731799,-1000.0,0.00024383,2]
[345566976,1734354731811,-1000.0,0.00024383,2]
[345566977,1734354731823,-1000.0,0.00024383,2]
[345566978,1734354731835,-1000.0,0.00024383,2]
[345566979,1734354731848,-934.9428668,0.00024383,2]
[345566980,1734354731859,-333.121617,0.00024398,2]
[345566981,1734354731871,-333.121617,0.00024398,4]
[345566982,1734354731884,-333.121617,0.00024398,8]
[345566983,1734354731896,-333.121617,0.00024398,10]
[345566984,1734354731908,-333.121617,0.00024398,12]
[345566985,1734354731920,-1000.0,0.000244,120]
[345566986,1734354731932,-388.19,0.0002441,2]
[345566987,1734354731943,-5000.0,0.00024418,2]
[345566988,1734354731957,-338.22401052,0.0002442,2]
[345566989,1734354731969,-988.58,0.00024421,7]
[345566990,1734354731981,-988.58,0.00024421,7]
[345566991,1734354731993,-25000.0,0.00024422,2]
[345566992,1734354732005,-5000.0,0.00024437,2]
[345566993,1734354732016,-1430.85,0.00024449,2]
[345566994,1734354732031,-16811.22595927,0.0002445,2]
[345566995,1734354732042,-900.0,0.00024452,2]
[345566996,1734354732053,-5000.0,0.00024455,2]
[345566997,1734354732064,-25000.0,0.00024478,2]
[345566998,1734354732077,-333.121617,0.00024498,10]
[345566999,1734354732088,-333.121617,0.00024498,8]
[345567000,1734354732100,-333.121617,0.00024498,4]
[345567001,1734354732111,-397.121617,0.00024498,12]
[345567002,1734354732122,-6149.97254956,0.00024498,2]
[345567003,1734354732135,-500.0,0.00024499,20]
[345567004,1734354732147,-500.0,0.00024499,20]
[345567005,1734354732158,-500.0,0.00024499,20]
[345567006,1734354732171,-500.0,0.00024499,20]
[345567007,1734354732182,-500.0,0.00024499,20]
[345567008,1734354732194,-500.0,0.00024499,20]
[345567009,1734354732206,-500.0,0.00024499,20]
[345567010,1734354732218,-297.91886882,0.00024499,20]
[345567011,1734354732230,-2110.0,0.000245,2]
[345567012,1734354732243,-413524.277997,0.000245,3]
[345567013,1734354732256,-330.0,0.000245,12]
[345567014,1734354732267,-7269.09,0.00024526,2]
[345567015,1734354732285,-5000.0,0.00024527,2]
[345567016,1734354732296,-5000.0,0.00024541,2]
[345567017,1734354732307,-1829.82,0.00024544,2]
[345567018,1734354732320,-25000.0,0.00024546,2]
[345567019,1734354732331,-5000.0,0.00024557,2]
[345567020,1734354732343,-25000.0,0.0002456,2]
[345567021,1734354732355,-202.0,0.0002456,2]
[345567022,1734354732366,-211.0,0.0002456,2]
[345567023,1734354732377,-204.0,0.0002456,2]
[345567024,1734354732389,-247.0,0.0002456,2]
[345567025,1734354732401,-5000.0,0.0002457,2]
[345567026,1734354732412,-25000.0,0.00024581,2]
[345567027,1734354732423,-5000.0,0.00024621,2]
[345567028,1734354732437,-2430.13,0.00024622,2]
[345567029,1734354732449,-212.34,0.0002463,120]
[345567030,1734354732461,-5000.0,0.00024639,2]
[345567031,1734354732474,-150.5,0.0002464,120]
[345567032,1734354732488,-150.5,0.0002465,120]
[345567033,1734354732501,-5000.0,0.00024655,2]
[345567034,1734354732515,-5000.0,0.00024657,20]
[345567035,1734354732530,-1000.0,0.00024657,3]
[345567036,1734354732543,-416.66632222,0.00024657,3]
[345567037,1734354732556,-150.0,0.00024658,7]
[345567038,1734354732569,-1000.0,0.00024658,2]
[345567039,1734354732584,-8677.0,0.00024658,4]
[345567040,1734354732597,-7688.08,0.00024658,2]
[345567041,1734354732610,-592.45,0.00024658,7]
[345567042,1734354732623,-592.45,0.00024658,7]
[345567043,1734354732636,-592.45,0.00024658,7]
[345567044,1734354732650,-592.45,0.00024658,7]
[345567045,1734354732663,-592.45,0.00024658,7]
[345567046,1734354732675,-592.45,0.00024658,7]
[345567047,1734354732688,-592.45,0.00024658,7]
[345567048,1734354732700,-592.45,0.00024658,7]
[345567049,1734354732713,-592.45,0.00024658,7]
[345567050,1734354732727,-592.45,0.00024658,7]
[345567051,1734354732740,-592.45,0.00024658,7]
[345567052,1734354732752,-592.45,0.00024658,7]
[345567053,1734354732766,-592.45,0.00024658,7]
[345567054,1734354732782,-592.45,0.00024658,7]
[345567055,1734354732796,-592.45,0.00024658,7]
[345567056,1734354732810,-592.45,0.00024658,7]
[345567057,1734354732824,-592.45,0.00024658,7]
[345567058,1734354732837,-592.45,0.00024658,7]
[345567059,1734354732850,-592.45,0.00024658,7]
[345567060,1734354732863,-592.45,0.00024658,7]
[345567061,1734354732877,-150.5,0.0002467,120]
[345567062,1734354732890,-150.5,0.0002467,120]
[345567063,1734354732904,-289.62,0.0002467,120]
[345567064,1734354732917,-941.0,0.0002467,30]
[345567065,1734354732930,-445.0,0.0002467,120]
[345567066,1734354732948,-941.0,0.0002467,30]
[345567067,1734354732961,-445.0,0.0002467,120]
[345567068,1734354732975,-150.5,0.0002468,120]
[345567069,1734354732989,-150.5,0.0002468,120]
[345567070,1734354733002,-150.5,0.0002468,120]
[345567071,1734354733015,-941.0,0.0002468,30]
[345567072,1734354733029,-445.0,0.0002468,120]
[345567073,1734354733042,-941.0,0.0002468,30]
[345567074,1734354733054,-445.0,0.0002468,120]
[345567075,1734354733066,-445.0,0.0002468,120]
[345567076,1734354733079,-941.0,0.0002468,30]
[345567077,1734354733092,-942.75,0.0002468,30]
[345567078,1734354733105,-450.3,0.0002468,120]
[345567079,1734354733119,-150.5,0.0002469,120]
[345567080,1734354733132,-198.99,0.0002469,120]
[345567081,1734354733146,-150.5,0.0002469,120]
[345567082,1734354733373,-150.5,0.0002469,120]
[345567083,1734354733390,-941.0,0.0002469,30]
[345567084,1734354733399,-445.0,0.0002469,120]
[345567085,1734354733408,-941.0,0.0002469,30]
[345567086,1734354733418,-445.0,0.0002469,120]
[345567087,1734354733427,-941.0,0.0002469,30]
[345567088,1734354733436,-445.0,0.0002469,120]
[345567089,1734354733446,-445.0,0.0002469,120]
[345567090,1734354733455,-941.0,0.0002469,30]
[345567091,1734354733465,-988.58,0.00024694,7]
[345567092,1734354733474,-988.58,0.00024694,7]
[345567093,1734354733483,-1910.26,0.00024696,2]
[345567094,1734354733492,-7400.0,0.000247,3]
[345567095,1734354733501,-7427.02,0.000247,7]
[345567096,1734354733510,-47610.63166926,0.000247,2]
[345567097,1734354733520,-1200.0,0.000247,2]
[345567098,1734354733531,-200.0,0.000247,2]
[345567099,1734354733541,-460.0,0.000247,2]
[345567100,1734354733550,-5000.0,0.00024718,2]
[345567101,1734354733559,-5000.0,0.0002473,2]
[345567102,1734354733569,-5000.0,0.00024736,2]
[345567103,1734354733580,-250.0,0.00024739,2]
[345567104,1734354733590,-2500.0,0.0002475,2]
[345567105,1734354733599,-5000.0,0.00024765,2]
[345567106,1734354733608,-699.08,0.00024765,2]
[345567107,1734354733617,-1648.81,0.00024799,2]
[345567108,1734354733627,-2004.75,0.000248,10]
[345567109,1734354733636,-4938.32,0.0002481,2]
[345567110,1734354733645,-200.0,0.00024825,10]
[345567111,1734354733654,-6197.95138123,0.00024826,10]
[345567112,1734354733663,-7168.67181335,0.00024826,10]
[345567113,1734354733672,-200.0,0.00024828,10]
[345567114,1734354733682,-420.37794345,0.00024829,10]
[345567115,1734354733691,-1257.71452334,0.00024829,10]
[345567116,1734354733700,-2729.00419556,0.00024829,10]
[345567117,1734354733710,-345.76913092,0.00024831,10]
[345567118,1734354733719,-2729.00419556,0.00024831,10]
[345567119,1734354733728,-5000.0,0.00024831,2]
[345567120,1734354733737,-7156.26782555,0.00024831,10]
[345567121,1734354733746,-4176.22368199,0.00024831,10]
[345567122,1734354733755,-19634.00874032,0.00024834,10]
[345567123,1734354733765,-6197.95138123,0.00024836,10]
[345567124,1734354733775,-200.0,0.00024836,10]
[345567125,1734354733784,-420.37794345,0.00024836,10]
[345567126,1734354733794,-1257.71452334,0.00024837,10]
[345567127,1734354733803,-200.0,0.00024837,10]
[345567128,1734354733812,-101706.6104201,0.00024838,10]
[345567129,1734354733821,-200.0,0.00024838,10]
[345567130,1734354733831,-7168.67181335,0.00024839,10]
[345567131,1734354733840,-6652.34056098,0.00024839,10]
[345567132,1734354733849,-420.37794345,0.0002484,10]
[345567133,1734354733859,-345.76913092,0.00024841,10]
[345567134,1734354733869,-4176.22368199,0.00024841,10]
[345567135,1734354733880,-200.0,0.00024843,10]
[345567136,1734354733889,-7156.26782555,0.00024843,10]
[345567137,1734354733898,-101706.6104201,0.00024844,10]
[345567138,1734354733907,-6652.34056098,0.00024844,10]
[345567139,1734354733916,-5000.0,0.00024845,2]
[345567140,1734354733926,-7168.67181335,0.00024845,10]
[345567141,1734354733935,-6197.95138123,0.00024846,10]
[345567142,1734354733944,-345.76913092,0.00024846,10]
[345567143,1734354733954,-7168.67181335,0.00024847,10]
[345567144,1734354733963,-101706.6104201,0.00024849,10]
[345567145,1734354733972,-658.20050333,0.00024849,10]
[345567146,1734354733981,-2310.06777717,0.00024849,10]
[345567147,1734354733991,-2310.06777717,0.00024849,10]